bitfinex/quotes_SOLUSD_20250722
["timestamp","ask_amount","ask_price","bid_price","bid_amount"]
[1753171293174,37.64,197.55,197.49,0.68]
[1753171293379,37.64,197.55,197.5,7.38470202]
[1753171293682,37.64,197.55,197.45,0.68]
[1753171293683,7.38470202,197.51,197.45,0.68]
[1753171293845,7.38470202,197.51,197.36,12.76699612]
[1753171293846,6.5557,197.49,197.36,0.78]
[1753171294045,23.34038397,197.49,197.36,8.16470202]
[1753171294278,7.38470202,197.42,197.36,8.16470202]
[1753171294569,23.34038397,197.49,197.38,7.38470202]
[1753171294570,7.38470202,197.44,197.38,7.38470202]
[1753171294747,38.28,197.43,197.38,7.38470202]
[1753171294947,38.28,197.43,197.39,0.68]
[1753171295144,38.28,197.43,197.36,8.16470202]
[1753171295378,7.38470202,197.42,197.36,0.78]
[1753171295558,5.06585612,197.4,197.36,0.1]
[1753171295758,7.38470202,197.38,197.36,0.1]
[1753171295969,7.38470202,197.37,197.36,0.1]
[1753171296269,7.64470202,197.37,197.36,0.1]
[1753171296771,24.42938599,197.37,197.36,1e-08]
[1753171297279,28.06261461,197.37,197.36,1e-08]
[1753171297657,33.12924074,197.37,197.36,1e-08]
[1753171298165,23.12078397,197.36,197.28,0.03]
[1753171298358,11.01793064,197.32,197.28,0.03]
[1753171298671,38.5,197.31,197.28,0.03]
[1753171298871,39.18,197.31,197.28,0.03]
[1753171299074,50.19793064,197.31,197.28,0.03]
[1753171299673,11.01793064,197.29,197.28,0.03]
[1753171300067,16.77635436,197.3,197.28,0.03]
[1753171300265,1.604,197.31,197.28,0.03]
[1753171300473,38.44,197.3,197.28,11.76793064]
[1753171300661,38.44,197.3,197.28,0.03]
[1753171301466,38.64,197.3,197.29,0.72]
[1753171302054,38.64,197.3,197.29,11.73793064]
[1753171302384,38.64,197.3,197.28,0.03]
[1753171302555,11.01793064,197.29,197.28,0.03]
[1753171303177,11.70793064,197.29,197.28,0.03]
[1753171303476,0.69,197.29,197.28,0.03]
[1753171303771,23.26221126,197.29,197.28,0.03]
[1753171303987,1.5231,197.23,197.12,5.07305194]
[1753171304153,39.45,197.22,197.15,11.01793064]
[1753171304683,11.01793064,197.21,197.2,0.03]
[1753171305155,11.01793064,197.21,197.12,0.72]
[1753171305156,11.70793064,197.21,197.12,11.01793064]
[1753171305359,11.01793064,197.16,197.06,5.07459656]
[1753171305670,43.81238612,197.15,197.1,11.01793064]
[1753171305865,43.81238612,197.15,197.01,12.68908228]
[1753171305866,44.50238612,197.15,197.01,12.68908228]
[1753171306061,44.50238612,197.15,197.1,11.01793064]
[1753171306264,55.52031676,197.15,197.04,26.0]
[1753171306464,11.01793064,197.14,197.08,11.01793064]
[1753171306980,11.01793064,197.14,197.01,12.68908228]
[1753171307173,39.43,197.15,197.09,11.01793064]
[1753171307369,0.69,197.18,197.11,11.01793064]
[1753171307569,38.7,197.17,197.14,11.01793064]
[1753171307773,38.72,197.16,197.14,11.01793064]
[1753171308083,38.72,197.16,197.12,16.09091067]
[1753171308288,38.72,197.16,197.12,16.81091067]
[1753171308482,38.72,197.16,197.13,11.01793064]
[1753171308684,38.72,197.16,197.12,5.07298003]
[1753171308873,11.01793064,197.18,197.04,51.3752967]
[1753171308874,38.68,197.15,197.11,5.07327176]
[1753171309188,38.68,197.14,197.12,0.72]
[1753171309371,0.69,197.18,197.12,0.72]
[1753171309689,49.67793064,197.17,197.12,5.79301777]
[1753171309864,11.01793064,197.17,197.07,12.68535101]
[1753171310064,39.35,197.16,197.08,5.79408159]
[1753171310271,49.67793064,197.16,197.1,11.01793064]
[1753171310963,49.67793064,197.16,197.1,11.73793064]
[1753171311490,11.01793064,197.14,197.08,16.09201223]
[1753171311692,38.64,197.13,197.11,11.01793064]
[1753171311992,38.64,197.15,197.11,0.72]
[1753171312290,38.64,197.15,197.11,11.73793064]
[1753171312791,11.01793064,197.22,197.14,11.01793064]
[1753171312998,11.01793064,197.22,197.12,0.72]
[1753171312999,38.6,197.21,197.16,11.01793064]
[1753171313185,38.6,197.21,197.17,0.72]
[1753171313565,38.6,197.21,197.17,11.73793064]
[1753171313766,38.6,197.21,197.2,11.01793064]
[1753171313982,2.2415,197.3,197.2,11.73793064]
[1753171314303,11.01793064,197.27,197.21,0.72]
[1753171314464,11.01793064,197.25,197.19,11.01793064]
[1753171314672,38.56,197.24,197.19,11.01793064]
[1753171314869,38.56,197.24,197.2,11.73793064]
[1753171315261,38.56,197.24,197.17,17.75093431]
[1753171315666,38.56,197.24,197.21,16.08854281]
[1753171315967,38.54,197.26,197.23,11.01793064]
[1753171316174,38.54,197.26,197.2,5.07094967]
[1753171316175,49.55793064,197.26,197.2,5.07094967]
[1753171316393,11.01793064,197.23,197.17,5.07176548]
[1753171316592,11.01793064,197.23,197.18,11.01793064]
[1753171316775,11.01793064,197.24,197.18,11.73793064]
[1753171317164,11.01793064,197.23,197.17,16.08969612]
[1753171317371,11.01793064,197.23,197.17,5.07176548]
[1753171317585,11.01793064,197.23,197.17,11.01793064]
[1753171317884,11.01793064,197.23,197.16,5.07202272]
[1753171317885,11.01793064,197.21,197.16,5.07202272]
[1753171318077,38.68,197.2,197.16,16.08995336]
[1753171318272,38.68,197.2,197.16,5.07202272]
[1753171318671,38.68,197.2,197.16,16.08995336]
[1753171319285,38.68,197.2,197.11,12.68315096]
[1753171319495,8.09398854,197.19,197.13,7.40398854]
[1753171319670,46.08398854,197.2,197.14,7.40398854]
[1753171319867,38.68,197.2,197.15,7.40398854]
[1753171320071,38.68,197.2,197.13,0.72]
[1753171320492,38.68,197.2,197.15,7.40398854]
[1753171320791,38.68,197.2,197.15,0.72]
[1753171320975,38.68,197.2,197.15,8.12398854]
[1753171321171,39.37,197.2,197.15,7.40398854]
[1753171321369,0.69,197.19,197.14,5.07249239]
[1753171321792,0.69,197.19,197.14,12.47648093]
[1753171321991,46.08398854,197.2,197.14,12.47648093]
[1753171322201,38.68,197.2,197.15,7.40398854]
[1753171322373,38.68,197.2,197.17,7.40398854]
[1753171322694,38.68,197.2,197.16,8.12398854]
[1753171322998,38.68,197.2,197.16,0.72]
[1753171323392,38.68,197.2,197.16,5.79183939]
[1753171323897,38.68,197.2,197.17,8.12398854]
[1753171324298,0.06,197.21,197.19,7.40398854]
[1753171324487,0.06,197.21,197.2,7.40398854]
[1753171324680,0.06,197.21,197.2,8.12398854]
[1753171325296,0.06,197.21,197.2,0.72]
[1753171325591,0.06,197.21,197.2,5.79099391]
[1753171325797,0.06,197.21,197.2,13.19498245]
[1753171327174,0.06,197.21,197.2,5.07099391]
[1753171327371,0.06,197.21,197.14,5.79253728]
[1753171327572,0.06,197.21,197.14,5.07253728]
[1753171327794,0.75,197.21,197.16,7.40398854]
[1753171327996,0.75,197.21,197.14,5.07253728]
[1753171327997,38.62,197.21,197.18,7.40398854]
[1753171328180,38.62,197.21,197.19,7.40398854]
[1753171328376,38.62,197.21,197.17,0.72]
[1753171328679,38.62,197.21,197.18,7.40398854]
[1753171328996,39.31,197.21,197.14,17.75388048]
[1753171329181,39.31,197.21,197.17,7.40398854]
[1753171329700,38.62,197.21,197.17,12.47565022]
[1753171329998,38.62,197.21,197.18,7.40398854]
[1753171330188,38.62,197.21,197.19,7.40398854]
[1753171330698,38.62,197.21,197.18,0.69]
[1753171330699,38.62,197.21,197.18,7.40398854]
[1753171331599,38.62,197.21,197.2,5.07099391]
[1753171331902,38.62,197.21,197.2,12.47498245]
[1753171332997,38.62,197.21,197.2,5.07099391]
[1753171333200,38.62,197.21,197.2,7.40398854]
[1753171333887,38.62,197.21,197.16,0.69]
[1753171334204,38.62,197.21,197.19,7.40398854]
[1753171334581,38.62,197.21,197.17,5.07176548]
[1753171334783,38.62,197.21,197.19,7.40398854]
[1753171334983,38.62,197.21,197.2,7.40398854]
[1753171335179,38.62,197.21,197.2,8.09398854]
[1753171335589,38.62,197.21,197.2,0.69]
[1753171335888,38.62,197.21,197.2,8.09398854]
[1753171336096,38.62,197.21,197.2,12.47498245]
[1753171338701,0.06,197.21,197.2,13.16498245]
[1753171338884,38.5,197.27,197.2,25.84246723]
[1753171339088,38.5,197.27,197.26,7.40398854]
[1753171339794,38.5,197.27,197.26,12.47344002]
[1753171339988,38.5,197.27,197.26,13.16344002]
[1753171340189,39.19,197.27,197.2,5.76099391]
[1753171340406,44.25921453,197.27,197.21,7.40398854]
[1753171340609,8.09398854,197.26,197.19,5.07119963]
[1753171340914,0.69,197.25,197.2,7.40398854]
[1753171341116,7.40398854,197.26,197.2,7.40398854]
[1753171341291,0.69,197.24,197.18,5.07146059]
[1753171341611,38.42,197.23,197.19,7.40398854]
[1753171341816,39.11,197.23,197.19,12.47518239]
[1753171342110,38.42,197.23,197.2,7.40398854]
[1753171343020,7.40398854,197.25,197.19,5.07119385]
[1753171343193,38.4,197.22,197.2,7.40398854]
[1753171343722,38.4,197.22,197.2,12.4747612]
[1753171343887,38.4,197.22,197.21,7.40398854]
[1753171344288,38.4,197.22,197.2,12.4747612]
[1753171345293,99.97007415,197.32,197.21,8.09398854]
[1753171345294,38.4,197.24,197.21,8.09398854]
[1753171345496,13.16272959,197.29,197.19,7.40398854]
[1753171345497,0.69,197.23,197.19,7.40398854]
[1753171345693,39.07,197.23,197.19,12.47501425]
[1753171345888,38.38,197.23,197.21,7.40398854]
[1753171346212,38.38,197.23,197.22,7.40398854]
[1753171346414,38.38,197.23,197.22,8.09398854]
[1753171346794,38.4,197.27,197.22,8.09398854]
[1753171346993,38.4,197.27,197.25,7.40398854]
[1753171347298,38.4,197.27,197.23,0.69]
[1753171347500,38.4,197.27,197.26,7.40398854]
[1753171347715,38.4,197.27,197.26,8.09398854]
[1753171347898,0.69,197.33,197.26,13.16344002]
[1753171348096,38.4,197.32,197.28,7.40398854]
[1753171348297,38.4,197.32,197.31,7.40398854]
[1753171348504,8.1549,197.35,197.31,7.40398854]
[1753171348705,38.38,197.32,197.31,7.40398854]
[1753171349331,38.38,197.32,197.31,12.47215538]
[1753171350326,38.38,197.32,197.31,13.16215538]
[1753171350739,1.5531,197.35,197.31,13.16215538]
[1753171351033,39.8931,197.35,197.33,7.40398854]
[1753171351436,8.09398854,197.34,197.22,0.69]
[1753171351609,7.40398854,197.31,197.25,7.40398854]
[1753171351804,38.32,197.3,197.26,7.40398854]
[1753171352006,38.32,197.3,197.29,7.40398854]
[1753171352311,0.69,197.39,197.29,8.09398854]
[1753171352534,38.3,197.38,197.35,7.40398854]
[1753171352837,38.3,197.38,197.28,7.40398854]
[1753171352838,0.2,197.41,197.37,7.40398854]
[1753171353002,0.2,197.41,197.36,0.69]
[1753171353003,0.2,197.41,197.4,7.40398854]
[1753171353205,0.2,197.41,197.4,33.40398854]
[1753171353442,0.2,197.41,197.4,46.5638332]
[1753171353822,1e-08,197.41,197.4,46.5638332]
[1753171354136,6.1279,197.56,197.43,26.0]
[1753171354444,38.3,197.53,197.5,7.40398854]
[1753171354618,7.40398854,197.51,197.45,7.40398854]
[1753171354937,8.09398854,197.52,197.46,7.40398854]
[1753171355152,38.3,197.53,197.45,0.69]
[1753171355318,38.3,197.53,197.51,7.40398854]
[1753171355522,38.3,197.53,197.48,5.06380392]
[1753171355701,38.3,197.53,197.49,7.40398854]
[1753171356139,38.3,197.53,197.5,7.40398854]
[1753171357118,38.3,197.53,197.43,26.0]
[1753171357303,0.69,197.52,197.44,0.69]
[1753171357521,0.69,197.52,197.47,7.40398854]
[1753171357716,38.3,197.53,197.5,7.40398854]
[1753171357921,38.3,197.53,197.48,0.69]
[1753171357922,38.3,197.53,197.51,7.40398854]
[1753171358220,38.3,197.53,197.52,7.40398854]
[1753171358620,38.3,197.53,197.52,12.46676699]
[1753171358845,1.7037,197.56,197.52,12.46676699]
[1753171359021,1.7037,197.56,197.54,7.40398854]
[1753171359223,0.06,197.56,197.55,7.40398854]
[1753171360340,0.06,197.56,197.54,7.40398854]
[1753171360535,0.06,197.56,197.5,0.69]
[1753171360842,0.06,197.56,197.55,7.40398854]
[1753171362337,0.06,197.56,197.53,0.69]
[1753171362522,0.71,197.55,197.42,0.69]
[1753171362723,7.40398854,197.5,197.43,5.06508635]
[1753171362947,38.16,197.5,197.45,7.40398854]
[1753171363253,38.16,197.5,197.46,7.40398854]
[1753171363561,0.71,197.49,197.45,7.40398854]
[1753171363847,38.16,197.5,197.45,7.40398854]
[1753171364053,0.71,197.49,197.45,7.40398854]
[1753171364246,0.71,197.49,197.43,5.06508635]
[1753171364447,43.22329162,197.5,197.45,7.40398854]
[1753171364627,0.71,197.49,197.43,7.40398854]
[1753171365122,0.71,197.49,197.44,7.40398854]
[1753171365331,38.16,197.5,197.45,7.40398854]
[1753171365546,38.16,197.5,197.46,7.40398854]
[1753171365746,38.87,197.5,197.45,7.40398854]
[1753171365953,38.87,197.5,197.42,7.40398854]
[1753171365954,7.40398854,197.48,197.42,7.40398854]
[1753171366147,7.40398854,197.46,197.4,7.40398854]
[1753171366445,38.12,197.46,197.41,7.40398854]
[1753171366629,38.12,197.46,197.42,7.40398854]
[1753171367063,12.46740396,197.5,197.45,7.40398854]
[1753171367234,38.12,197.47,197.45,7.40398854]
[1753171367823,38.12,197.47,197.46,7.40398854]
[1753171368358,0.06,197.49,197.46,0.69]
[1753171368679,0.06,197.49,197.46,7.40398854]
[1753171368957,0.06,197.49,197.47,7.40398854]
[1753171369527,0.06,197.49,197.46,0.69]
[1753171369528,0.06,197.49,197.38,12.66572764]
[1753171369862,0.06,197.49,197.45,7.40398854]
[1753171370323,0.77,197.49,197.45,7.40398854]
[1753171370739,0.71,197.48,197.42,0.69]
[1753171371051,0.71,197.48,197.43,7.40398854]
[1753171371273,0.71,197.47,197.4,5.065644]
[1753171371568,38.02,197.46,197.41,7.40398854]
[1753171371732,0.71,197.45,197.41,7.40398854]
[1753171372768,38.02,197.46,197.35,0.69]
[1753171372769,7.40398854,197.43,197.35,0.69]
[1753171372961,45.42398854,197.42,197.36,7.40398854]
[1753171373251,46.13398854,197.42,197.36,7.40398854]
[1753171373846,38.02,197.42,197.37,7.40398854]
[1753171374048,38.73,197.42,197.37,7.40398854]
[1753171374961,38.73,197.42,197.36,12.47087139]
[1753171375140,38.73,197.42,197.37,7.40398854]
[1753171375333,38.02,197.42,197.36,7.40398854]
[1753171375538,0.71,197.41,197.36,7.40398854]
[1753171375851,6.2162,197.39,197.24,0.69]
[1753171376034,7.40398854,197.34,197.27,7.40398854]
[1753171376358,37.96,197.33,197.3,7.40398854]
[1753171376562,37.96,197.32,197.3,0.69]
[1753171376743,37.96,197.32,197.3,8.09398854]
[1753171376944,37.96,197.32,197.3,7.40398854]
[1753171379168,8.11398854,197.31,197.23,0.69]
[1753171379369,7.40398854,197.3,197.23,8.09398854]
[1753171379566,7.40398854,197.26,197.19,8.09398854]
[1753171379748,45.30398854,197.25,197.13,12.6818015]
[1753171379951,7.40398854,197.24,197.18,7.40398854]
[1753171380271,7.40398854,197.24,197.19,7.40398854]
[1753171380272,0.71,197.24,197.19,7.40398854]
[1753171380478,45.30398854,197.25,197.13,12.6818015]
[1753171380479,37.9,197.25,197.2,7.40398854]
[1753171380640,45.30398854,197.25,197.19,7.40398854]
[1753171381271,37.9,197.25,197.2,7.40398854]
[1753171381464,37.86,197.25,197.22,0.69]
[1753171381670,37.86,197.25,197.21,7.43398854]
[1753171381968,37.86,197.25,197.21,8.12398854]
[1753171382347,37.86,197.25,197.21,0.72]
[1753171382547,37.86,197.25,197.22,7.40398854]
[1753171383173,38.57,197.25,197.21,12.50469936]
[1753171383757,0.71,197.24,197.21,0.03]
[1753171384274,37.86,197.25,197.21,0.03]
[1753171384456,38.57,197.25,197.21,0.03]
[1753171384653,45.97398854,197.25,197.21,0.03]
[1753171385057,38.57,197.25,197.21,0.03]
[1753171385780,0.71,197.24,197.21,0.03]
[1753171386367,37.86,197.25,197.21,0.03]
[1753171386581,1.5178,197.29,197.24,7.40398854]
[1753171386747,0.71,197.32,197.28,7.40398854]
[1753171387071,37.8,197.31,197.29,7.40398854]
[1753171387446,37.8,197.31,197.3,7.40398854]
[1753171387671,45.91398854,197.31,197.23,5.07022258]
[1753171387847,7.40398854,197.29,197.23,7.40398854]
[1753171388174,0.71,197.3,197.24,7.40398854]
[1753171388175,0.71,197.28,197.24,7.40398854]
[1753171388377,5.06794527,197.32,197.24,7.40398854]
[1753171388378,37.82,197.27,197.24,7.40398854]
[1753171388585,38.53,197.27,197.21,0.03]
[1753171388876,7.40398854,197.25,197.21,0.03]
[1753171389252,0.71,197.24,197.21,0.03]
[1753171389467,37.82,197.23,197.21,0.03]
[1753171389770,38.54,197.23,197.21,0.03]
[1753171390153,43.61027125,197.23,197.21,0.03]
[1753171390468,0.72,197.22,197.21,0.03]
[1753171390671,37.82,197.23,197.21,0.03]
[1753171391153,38.54,197.23,197.21,0.03]
[1753171391356,0.72,197.22,197.21,0.03]
[1753171392247,13.1944682,197.22,197.21,0.03]
[1753171392653,0.72,197.22,197.21,0.03]
[1753171393775,8.12398854,197.22,197.21,0.03]
[1753171394167,13.1944682,197.22,197.21,0.03]
[1753171394885,38.82,197.22,197.21,0.03]
[1753171395473,38.1,197.22,197.21,0.03]
[1753171396467,6.3451,197.26,197.21,7.43398854]
[1753171396779,38.06,197.26,197.25,7.40398854]
[1753171397555,38.06,197.26,197.21,0.03]
[1753171397556,46.18398854,197.26,197.21,0.03]
[1753171397774,7.40398854,197.22,197.21,0.03]
[1753171397964,45.44398854,197.22,197.21,0.03]
[1753171398172,46.16398854,197.22,197.21,0.03]
[1753171398367,38.76,197.22,197.21,0.03]
[1753171398570,38.04,197.22,197.21,0.03]
[1753171399172,38.04,197.22,197.21,7.43398854]
[1753171399677,9.68918854,197.28,197.21,7.43398854]
[1753171399884,38.02,197.27,197.22,7.40398854]
[1753171400180,38.74,197.27,197.22,7.40398854]
[1753171400394,38.74,197.27,197.22,5.07037725]
[1753171400698,38.02,197.27,197.23,8.08398854]
[1753171400855,38.02,197.27,197.23,7.40398854]
[1753171401171,0.72,197.26,197.21,0.03]
[1753171401361,8.12398854,197.26,197.21,5.10064311]
[1753171401572,38.02,197.27,197.22,7.40398854]
[1753171402173,46.14398854,197.27,197.21,13.18463165]
[1753171402383,46.14398854,197.27,197.21,5.10064311]
[1753171402572,7.40398854,197.26,197.21,5.10064311]
[1753171402768,0.72,197.25,197.21,5.10064311]
[1753171403183,38.72,197.24,197.21,0.03]
[1753171403363,38.0,197.24,197.21,5.10060683]
[1753171403562,38.0,197.24,197.21,12.50459537]
[1753171403775,38.0,197.24,197.21,12.68459537]
[1753171403972,38.0,197.24,197.22,8.08398854]
[1753171404176,38.0,197.24,197.21,4.60060683]
[1753171404177,1.5652,197.28,197.23,8.08398854]
[1753171404387,37.96,197.27,197.24,13.15378218]
[1753171404583,37.96,197.27,197.23,5.07019863]
[1753171405086,37.96,197.27,197.17,0.03]
[1753171405087,7.40398854,197.25,197.19,7.40398854]
[1753171405259,37.96,197.24,197.19,7.40398854]
[1753171405675,37.96,197.24,197.19,8.08398854]
[1753171406212,37.96,197.24,197.2,7.40398854]
[1753171406994,37.96,197.24,197.21,5.07073677]
[1753171407176,38.68,197.24,197.2,7.40398854]
[1753171407698,37.96,197.24,197.23,7.40398854]
[1753171407876,14.12878854,197.31,197.23,8.08398854]
[1753171408071,14.12878854,197.31,197.25,7.40398854]
[1753171408072,37.88,197.3,197.25,7.40398854]
[1753171408272,46.00398854,197.3,197.26,5.06945148]
[1753171408877,38.6,197.3,197.26,5.06945148]
[1753171409078,38.6,197.3,197.2,0.68]
[1753171409079,0.72,197.29,197.2,0.68]
[1753171409391,8.12398854,197.29,197.23,7.40398854]
[1753171409792,0.72,197.29,197.24,7.40398854]
[1753171410590,0.72,197.29,197.24,5.0698076]
[1753171410781,8.12398854,197.29,197.24,5.0698076]
[1753171411287,8.12398854,197.28,197.19,5.75125107]
[1753171411489,8.12398854,197.27,197.21,7.40398854]
[1753171411677,37.82,197.26,197.21,7.40398854]
[1753171411873,38.54,197.26,197.21,7.40398854]
[1753171412391,45.94398854,197.26,197.2,7.40398854]
[1753171412689,0.72,197.25,197.2,7.40398854]
[1753171413283,0.72,197.25,197.2,8.08398854]
[1753171413894,37.82,197.26,197.21,13.15472531]
[1753171414394,38.54,197.26,197.21,13.15472531]
[1753171414696,38.54,197.26,197.21,5.07073677]
[1753171414881,0.72,197.25,197.21,5.07073677]
[1753171415076,0.72,197.25,197.21,5.10073677]
[1753171416599,37.82,197.26,197.22,8.08398854]
[1753171416776,37.82,197.26,197.23,7.40398854]
[1753171417602,37.82,197.26,197.23,8.08398854]
[1753171417900,37.82,197.26,197.24,0.68]
[1753171418096,2.3297,197.33,197.25,8.08398854]
[1753171418301,39.3097,197.33,197.3,7.40398854]
[1753171418505,39.3097,197.33,197.26,18.42308019]
[1753171418506,1.6566,197.38,197.32,7.40398854]
[1753171418674,37.7,197.37,197.33,7.40398854]
[1753171418872,37.7,197.37,197.32,7.40398854]
[1753171419074,38.42,197.37,197.32,7.40398854]
[1753171419269,37.7,197.37,197.33,0.68]
[1753171419499,37.7,197.37,197.33,8.08398854]
[1753171419794,37.7,197.37,197.34,7.40398854]
[1753171420177,37.7,197.37,197.35,5.06713959]
[1753171420882,0.69,197.36,197.29,0.66]
[1753171421102,8.09398854,197.36,197.3,7.40398854]
[1753171421403,37.7,197.37,197.29,0.66]
[1753171421404,0.69,197.35,197.29,7.40398854]
[1753171421573,0.69,197.35,197.28,0.66]
[1753171421574,7.40398854,197.34,197.28,7.40398854]
[1753171421773,7.40398854,197.32,197.26,12.47344002]
[1753171421972,0.69,197.31,197.26,12.47344002]
[1753171422372,0.69,197.3,197.25,12.47366436]
[1753171422575,37.68,197.29,197.25,5.06967582]
[1753171423101,38.37,197.29,197.24,12.4738996]
[1753171423287,45.77398854,197.29,197.24,5.06991106]
[1753171423474,0.69,197.28,197.24,5.06991106]
[1753171423875,37.68,197.29,197.23,5.07022258]
[1753171424097,37.68,197.29,197.23,12.47421112]
[1753171424098,45.08398854,197.29,197.23,12.47421112]
[1753171424398,45.08398854,197.29,197.24,7.40398854]
[1753171424399,37.68,197.29,197.24,7.40398854]
[1753171424583,0.69,197.28,197.23,5.07022258]
[1753171425100,37.68,197.29,197.24,7.40398854]
[1753171425495,37.68,197.29,197.24,8.06398854]
[1753171425707,7.2901,197.31,197.25,7.40398854]
[1753171425879,37.66,197.3,197.29,5.06868062]
[1753171426075,37.66,197.31,197.29,5.06868062]
[1753171426401,37.66,197.31,197.29,12.47266916]
[1753171426774,37.66,197.31,197.29,5.06868062]
[1753171429279,37.66,197.31,197.29,12.47266916]
[1753171430114,0.69,197.3,197.21,0.69]
[1753171430283,7.40398854,197.29,197.23,7.40398854]
[1753171430481,0.69,197.29,197.23,7.40398854]
[1753171430778,8.09398854,197.29,197.23,7.40398854]
[1753171430985,8.09398854,197.29,197.22,12.4744682]
[1753171431297,8.09398854,197.29,197.23,7.40398854]
[1753171432998,8.09398854,197.29,197.22,5.07047966]
[1753171433208,8.09398854,197.29,197.23,12.47400097]
[1753171433508,13.16280274,197.29,197.23,5.07001243]
[1753171433682,13.16280274,197.29,197.23,12.47400097]
[1753171433880,7.40398854,197.27,197.21,0.03]
[1753171434109,37.62,197.26,197.23,7.40398854]
[1753171435211,37.62,197.26,197.21,5.76071545]
[1753171435393,38.31,197.26,197.22,7.40398854]
[1753171436419,37.62,197.26,197.24,7.40398854]
[1753171436785,37.62,197.26,197.24,8.06398854]
[1753171437186,0.69,197.25,197.21,0.03]
[1753171437410,38.31,197.26,197.22,5.07022986]
[1753171437597,37.62,197.26,197.22,13.1342184]
[1753171437998,37.62,197.26,197.22,5.07022986]
[1753171438312,37.62,197.26,197.21,0.03]
[1753171438313,0.69,197.25,197.21,0.03]
[1753171438613,0.69,197.25,197.21,5.10071571]
[1753171439308,0.69,197.24,197.21,0.03]
[1753171439511,8.09398854,197.24,197.21,0.03]
[1753171439815,0.69,197.23,197.21,0.03]
[1753171440211,38.31,197.22,197.21,0.03]
[1753171440423,1.6233,197.28,197.21,0.03]
[1753171440424,37.62,197.25,197.21,8.09398854]
[1753171440721,37.62,197.25,197.21,0.69]
[1753171440889,37.62,197.25,197.22,0.66]
[1753171441090,37.62,197.25,197.22,7.40398854]
[1753171441810,37.62,197.25,197.22,12.47445887]
[1753171442022,37.62,197.25,197.04,75.91464485]
[1753171442023,1.6598,197.21,197.1,12.47755525]
[1753171442189,38.31,197.2,197.1,12.47755525]
[1753171442388,0.69,197.19,197.09,8.06398854]
[1753171442721,7.40398854,197.16,197.09,12.47770135]
[1753171442889,37.62,197.15,197.09,12.47770135]
[1753171443088,38.31,197.15,197.09,12.47770135]
[1753171443299,0.69,197.14,197.09,5.07371281]
[1753171443501,0.69,197.14,197.01,0.66]
[1753171443502,6.0973,197.11,197.01,0.66]
[1753171443709,38.31,197.1,197.05,7.40398854]
[1753171443890,6.0973,197.16,197.09,7.40398854]
[1753171444090,6.0973,197.16,197.04,7.40398854]
[1753171444091,37.62,197.15,197.11,7.40398854]
[1753171444293,37.62,197.15,197.1,7.40398854]
[1753171444592,38.31,197.15,197.09,7.40398854]
[1753171444999,7.40398854,197.13,197.04,0.66]
[1753171445205,0.69,197.12,197.07,7.40398854]
[1753171445413,37.62,197.11,197.07,12.47816572]
[1753171446111,37.62,197.11,197.07,5.07417718]
[1753171446316,38.31,197.11,197.07,12.47816572]
[1753171446511,38.31,197.11,197.07,5.07417718]
[1753171448599,0.69,197.1,197.04,7.40398854]
[1753171448803,0.69,197.1,197.05,7.40398854]
[1753171449005,0.69,197.1,197.06,7.40398854]
[1753171449403,0.69,197.1,197.06,12.47852303]
[1753171449914,14.22128854,197.16,197.09,7.40398854]
[1753171450219,37.64,197.15,197.1,7.40398854]
[1753171450517,0.72,197.14,197.09,7.40398854]
[1753171450692,8.12398854,197.13,197.07,7.40398854]
[1753171451621,8.12398854,197.13,197.08,5.07408159]
[1753171451997,0.72,197.12,197.07,12.47832294]